fUSD/lending_fUSD_20250616
["ID","MTS","AMOUNT","RATE_DAILY","PERIOD"]
[366098639,1750061448635,-2482.34,0.00016602,2]
[366098640,1750061448645,-490.0,0.00016602,2]
[366098641,1750061448655,-490.0,0.00016602,2]
[366098642,1750061448665,-490.0,0.00016602,2]
[366098643,1750061448682,-490.0,0.00016602,2]
[366098644,1750061448693,-568.07,0.00016602,2]
[366098645,1750061448704,-1259.99,0.00016602,2]
[366098646,1750061448714,-788.28,0.00016602,2]
[366098647,1750061448725,-490.0,0.00016602,2]
[366098648,1750061448736,-1322.14,0.00016602,2]
[366098649,1750061448747,-490.0,0.00016602,2]
[366098650,1750061448758,-490.0,0.00016602,2]
[366098651,1750061448769,-1431.92,0.00016602,2]
[366098652,1750061448779,-2046.58,0.00016602,2]
[366098653,1750061448790,-490.0,0.00016602,2]
[366098654,1750061448801,-997.36,0.00016602,2]
[366098655,1750061448813,-650.38,0.00016602,2]
[366098656,1750061448824,-529.14,0.00016602,2]
[366098657,1750061448835,-592.17,0.00016602,2]
[366098658,1750061448846,-1292.2,0.00016602,2]
[366098659,1750061448858,-1313.17,0.00016602,2]
[366098660,1750061448869,-580.03,0.00016602,2]
[366098661,1750061448880,-505.52,0.00016602,2]
[366098662,1750061448891,-1503.41,0.00016602,2]
[366098663,1750061448902,-490.0,0.00016602,2]
[366098664,1750061448913,-591.97733761,0.00016602,2]
[366098665,1750061448923,-936.69,0.00016602,2]
[366098666,1750061448934,-605.67,0.00016602,2]
[366098667,1750061448946,-871.94,0.00016602,2]
[366098668,1750061448958,-490.0,0.00016602,2]
[366098669,1750061448968,-1811.56,0.00016602,2]
[366098670,1750061448979,-525.53,0.00016602,2]
[366098671,1750061448990,-810.79,0.00016602,2]
[366098672,1750061449000,-1225.01,0.00016602,2]
[366098673,1750061449011,-490.0,0.00016602,2]
[366098674,1750061449022,-490.0,0.00016602,2]
[366098675,1750061449033,-151.0,0.00016602,2]
[366098676,1750061449045,-490.0,0.00016602,2]
[366098677,1750061449056,-151.0,0.00016602,2]
[366098678,1750061449067,-917.46,0.00016602,2]
[366098679,1750061449079,-151.0,0.00016602,2]
[366098680,1750061449090,-763.729855,0.00016602,2]
[366098681,1750061449100,-688.77,0.00016602,2]
[366098682,1750061449117,-490.0,0.00016602,2]
[366098683,1750061449129,-490.0,0.00016602,2]
[366098684,1750061449140,-1310.35,0.00016602,2]
[366098685,1750061449151,-763.729855,0.00016602,2]
[366098686,1750061449162,-490.0,0.00016602,2]
[366098687,1750061449173,-1264.06,0.00016602,2]
[366098688,1750061449183,-615.08,0.00016602,2]
[366098689,1750061449194,-490.0,0.00016602,2]
[366098690,1750061449205,-769.48,0.00016602,2]
[366098691,1750061449215,-151.0,0.00016602,2]
[366098692,1750061449226,-515.27,0.00016602,2]
[366098693,1750061449236,-490.0,0.00016602,2]
[366098694,1750061449247,-1182.88,0.00016602,2]
[366098695,1750061449257,-1478.73,0.00016602,2]
[366098696,1750061449267,-151.0,0.00016602,2]
[366098697,1750061449278,-1048.62,0.00016602,2]
[366098698,1750061449288,-490.0,0.00016602,2]
[366098699,1750061449299,-694.66,0.00016602,2]
[366098700,1750061449310,-151.0,0.00016602,2]
[366098701,1750061449321,-490.0,0.00016602,2]
[366098702,1750061449332,-678.44,0.00016602,2]
[366098703,1750061449342,-953.62,0.00016602,2]
[366098704,1750061449353,-1225.93,0.00016602,2]
[366098705,1750061449364,-490.0,0.00016602,2]
[366098706,1750061449375,-1749.33,0.00016602,2]
[366098707,1750061449386,-490.0,0.00016602,2]
[366098708,1750061449397,-1696.54,0.00016602,2]
[366098709,1750061449407,-490.0,0.00016602,2]
[366098710,1750061449418,-1273.75,0.00016602,2]
[366098711,1750061449428,-23305.46,0.00016602,2]
[366098712,1750061449439,-2092.7,0.00016602,2]
[366098713,1750061449449,-2262.585891,0.00016602,2]
[366098714,1750061449460,-1640.19,0.00016602,2]
[366098715,1750061449471,-622.47,0.00016602,2]
[366098716,1750061449482,-151.0,0.00016602,2]
[366098717,1750061449492,-490.0,0.00016602,2]
[366098718,1750061449503,-1291.33,0.00016602,2]
[366098719,1750061449514,-490.0,0.00016602,2]
[366098720,1750061449524,-1125.0,0.00016602,2]
[366098721,1750061449535,-490.0,0.00016602,2]
[366098722,1750061449551,-295.214219,0.00016602,2]
[366098723,1750061449562,-217.623931,0.00016602,2]
[366098724,1750061449572,-2146.39,0.00016602,2]
[366098725,1750061449583,-490.0,0.00016602,2]
[366098726,1750061449594,-619.01,0.00016602,2]
[366098727,1750061449604,-490.0,0.00016602,2]
[366098728,1750061449615,-490.0,0.00016602,2]
[366098729,1750061449625,-490.0,0.00016602,2]
[366098730,1750061449636,-295.214219,0.00016602,2]
[366098731,1750061449646,-867.52,0.00016602,2]
[366098732,1750061449656,-2684.99,0.00016602,2]
[366098733,1750061449667,-217.623931,0.00016602,2]
[366098734,1750061449677,-490.0,0.00016602,2]
[366098735,1750061449687,-3714.74,0.00016602,2]
[366098736,1750061449698,-1171.26,0.00016602,2]
[366098737,1750061449707,-490.0,0.00016602,2]
[366098738,1750061449717,-1262.25,0.00016602,2]
[366098739,1750061449727,-490.0,0.00016602,2]
[366098740,1750061449737,-151.0,0.00016602,2]
[366098741,1750061449748,-1910.67,0.00016602,2]
[366098742,1750061449758,-19260.35,0.00016602,2]
[366098743,1750061449768,-490.0,0.00016602,2]
[366098744,1750061449778,-3629.76,0.00016602,2]
[366098745,1750061449788,-281.915627,0.00016602,2]
[366098746,1750061449798,-490.0,0.00016602,2]
[366098747,1750061449808,-527.6,0.00016602,2]
[366098748,1750061449818,-1955.52,0.00016602,2]
[366098749,1750061449828,-1556.56,0.00016602,2]
[366098750,1750061449838,-490.0,0.00016602,2]
[366098751,1750061449848,-490.0,0.00016602,2]
[366098752,1750061449860,-1976.07,0.00016602,2]
[366098753,1750061449870,-567.43,0.00016602,2]
[366098754,1750061449881,-490.0,0.00016602,2]
[366098755,1750061449891,-1536.45,0.00016602,2]
[366098756,1750061449900,-1904.04,0.00016602,2]
[366098757,1750061449911,-3222.188951,0.00016602,2]
[366098758,1750061449921,-1132.19,0.00016602,2]
[366098759,1750061449931,-490.0,0.00016602,2]
[366098760,1750061449942,-490.0,0.00016602,2]
[366098761,1750061449952,-8680.47,0.00016602,2]
[366098762,1750061449962,-3843.59,0.00016602,2]
[366098763,1750061449972,-3470.55,0.00016602,2]
[366098764,1750061449982,-5567.22,0.00016602,2]
[366098765,1750061450003,-1582.1,0.00016602,2]
[366098766,1750061450016,-1219.05,0.00016602,2]
[366098767,1750061450028,-1039.59,0.00016602,2]
[366098768,1750061450039,-575.86,0.00016602,2]
[366098769,1750061450049,-1144.34,0.00016602,2]
[366098770,1750061450060,-554.76,0.00016602,2]
[366098771,1750061450071,-3283.11,0.00016602,2]
[366098772,1750061450082,-4449.94,0.00016602,2]
[366098773,1750061450093,-309.65892,0.00016602,2]
[366098774,1750061450104,-16597.64,0.00016602,2]
[366098775,1750061450114,-625.9,0.00016602,2]
[366098776,1750061450125,-1758.68,0.00016602,2]
[366098777,1750061450135,-151.0,0.00016602,2]
[366098778,1750061450145,-1476.2,0.00016602,2]
[366098779,1750061450156,-490.0,0.00016602,2]
[366098780,1750061450166,-1890.47,0.00016602,2]
[366098781,1750061450750,-7115.73,0.00016602,2]
[366098782,1750061450772,-309.65892,0.00016602,2]
[366098783,1750061450782,-490.0,0.00016602,2]
[366098784,1750061450792,-490.0,0.00016602,2]
[366098785,1750061450802,-4525.37,0.00016602,2]
[366098786,1750061450812,-1122.89,0.00016602,2]
[366098787,1750061450822,-4968.79,0.00016602,2]
[366098788,1750061450832,-1064.65,0.00016602,2]
[366098789,1750061450841,-752.51,0.00016602,2]
[366098790,1750061450851,-490.0,0.00016602,2]
[366098791,1750061450866,-716.02,0.00016602,2]
[366098792,1750061450877,-683.43,0.00016602,2]
[366098793,1750061450888,-490.0,0.00016602,2]
[366098794,1750061450899,-572.19,0.00016602,2]
[366098795,1750061450909,-490.0,0.00016602,2]
[366098796,1750061450919,-1389.35,0.00016602,2]
[366098797,1750061450929,-1608.86,0.00016602,2]
[366098798,1750061450940,-1720.19,0.00016602,2]
[366098799,1750061450950,-1045.72,0.00016602,2]
[366098800,1750061450960,-1513.42,0.00016602,2]
[366098801,1750061450970,-490.0,0.00016602,2]
[366098802,1750061450979,-2440.53,0.00016602,2]
[366098803,1750061450989,-490.0,0.00016602,2]
[366098804,1750061450999,-2643.77,0.00016602,2]
[366098805,1750061451009,-1384.0,0.00016602,2]
[366098806,1750061451019,-490.0,0.00016602,2]
[366098807,1750061451029,-1495.915395,0.00016602,2]
[366098808,1750061451039,-490.0,0.00016602,2]
[366098809,1750061451049,-490.0,0.00016602,2]
[366098810,1750061451059,-1118.18,0.00016602,2]
[366098811,1750061451069,-1495.915395,0.00016602,2]
[366098812,1750061451079,-2109.1,0.00016602,2]
[366098813,1750061451088,-490.0,0.00016602,2]
[366098814,1750061451098,-9892.24,0.00016602,2]
[366098815,1750061451108,-490.0,0.00016602,2]
[366098816,1750061451118,-937.37,0.00016602,2]
[366098817,1750061451128,-2451.38,0.00016602,2]
[366098818,1750061451143,-953.77,0.00016602,2]
[366098819,1750061451153,-546.13,0.00016602,2]
[366098820,1750061451164,-490.0,0.00016602,2]
[366098821,1750061451175,-1445.26,0.00016602,2]
[366098822,1750061451184,-1260.0,0.00016602,2]
[366098823,1750061451195,-1838.14,0.00016602,2]
[366098824,1750061451205,-8776.07,0.00016602,2]
[366098825,1750061451215,-947.11,0.00016602,2]
[366098826,1750061451225,-490.0,0.00016602,2]
[366098827,1750061451236,-152.766728,0.00016602,2]
[366098828,1750061451246,-945.37,0.00016602,2]
[366098829,1750061451256,-490.0,0.00016602,2]
[366098830,1750061451266,-548.285852,0.00016602,2]
[366098831,1750061451276,-1044.56,0.00016602,2]
[366098832,1750061451287,-6373.47,0.00016602,2]
[366098833,1750061451297,-152.766728,0.00016602,2]
[366098834,1750061451308,-1402.29,0.00016602,2]
[366098835,1750061451319,-490.0,0.00016602,2]
[366098836,1750061451329,-2078.96,0.00016602,2]
[366098837,1750061451339,-2273.26,0.00016602,2]
[366098838,1750061451350,-1607.42,0.00016602,2]
[366098839,1750061451360,-2632.47,0.00016602,2]
[366098840,1750061451370,-1025.12,0.00016602,2]
[366098841,1750061451380,-548.285852,0.00016602,2]
[366098842,1750061451390,-3386.98,0.00016602,2]
[366098843,1750061451401,-588.23,0.00016602,2]
[366098844,1750061451411,-490.0,0.00016602,2]
[366098845,1750061451421,-490.0,0.00016602,2]
[366098846,1750061451431,-1049.53,0.00016602,2]
[366098847,1750061451442,-1068.41,0.00016602,2]
[366098848,1750061451451,-490.0,0.00016602,2]
[366098849,1750061451462,-1368.81,0.00016602,2]
[366098850,1750061451472,-2427.15,0.00016602,2]
[366098851,1750061451482,-564.23,0.00016602,2]
[366098852,1750061451492,-1970.91,0.00016602,2]
[366098853,1750061451502,-490.0,0.00016602,2]
[366098854,1750061451512,-1581.16,0.00016602,2]
[366098855,1750061451522,-1746.87,0.00016602,2]
[366098856,1750061451533,-490.0,0.00016602,2]
[366098857,1750061451543,-6875.6,0.00016602,2]
[366098858,1750061451553,-549.48,0.00016602,2]
[366098859,1750061451564,-493.11991115,0.00016602,2]
[366098860,1750061451584,-490.0,0.00016602,2]
[366098861,1750061451600,-715.62,0.00016602,2]
[366098862,1750061451611,-490.0,0.00016602,2]
[366098863,1750061451621,-490.0,0.00016602,2]
[366098864,1750061451632,-341.66364328,0.00016602,2]
[366098865,1750061451642,-1271.37,0.00016602,2]
[366098866,1750061451653,-4586.66,0.00016602,2]
[366098867,1750061451663,-2742.51,0.00016602,2]
[366098868,1750061451674,-1983.86,0.00016602,2]
[366098869,1750061451684,-490.0,0.00016602,2]
[366098870,1750061451694,-694.23,0.00016602,2]
[366098871,1750061451704,-490.0,0.00016602,2]
[366098872,1750061451714,-575.39,0.00016602,2]
[366098873,1750061451725,-1787.41,0.00016602,2]
[366098874,1750061451736,-490.0,0.00016602,2]
[366098875,1750061451746,-490.0,0.00016602,2]
[366098876,1750061451756,-490.0,0.00016602,2]
[366098877,1750061451766,-3759.01,0.00016602,2]
[366098878,1750061451776,-490.0,0.00016602,2]
[366098879,1750061451787,-2320.85,0.00016602,2]
[366098880,1750061451797,-490.0,0.00016602,2]
[366098881,1750061451807,-490.0,0.00016602,2]
[366098882,1750061451817,-508.71,0.00016602,2]
[366098883,1750061451827,-2782.08,0.00016602,2]
[366098884,1750061451838,-490.0,0.00016602,2]
[366098885,1750061451848,-1920.47,0.00016602,2]
[366098886,1750061451860,-912.05,0.00016602,2]
[366098887,1750061451870,-2254.67,0.00016602,2]
[366098888,1750061451881,-918.68,0.00016602,2]
[366098889,1750061451891,-7846.4,0.00016602,2]
[366098890,1750061451901,-1560.49,0.00016602,2]
[366098891,1750061451912,-829.31,0.00016602,2]
[366098892,1750061451922,-1657.99,0.00016602,2]
[366098893,1750061451933,-5356.37,0.00016602,2]
[366098894,1750061451944,-490.0,0.00016602,2]
[366098895,1750061451954,-1820.74,0.00016602,2]
[366098896,1750061451964,-1868.85,0.00016602,2]
[366098897,1750061451974,-490.0,0.00016602,2]
[366098898,1750061451984,-3206.72,0.00016602,2]
[366098899,1750061451995,-892.65,0.00016602,2]
[366098900,1750061452005,-852.59,0.00016602,2]
[366098901,1750061452015,-9620.63,0.00016602,2]
[366098902,1750061452026,-1012.29,0.00016602,2]
[366098903,1750061452036,-490.0,0.00016602,2]
[366098904,1750061452046,-490.0,0.00016602,2]
[366098905,1750061452056,-490.0,0.00016602,2]
[366098906,1750061452067,-1269.13,0.00016602,2]
[366098907,1750061452078,-1824.71,0.00016602,2]
[366098908,1750061452088,-1890.2,0.00016602,2]
[366098909,1750061452098,-832.21,0.00016602,2]
[366098910,1750061452108,-2369.79,0.00016602,2]
[366098911,1750061452119,-1915.18,0.00016602,2]
[366098912,1750061452129,-676.22,0.00016602,2]
[366098913,1750061452140,-490.0,0.00016602,2]
[366098914,1750061452151,-1123.61,0.00016602,2]
[366098915,1750061452162,-491.89,0.00016602,2]
[366098916,1750061452172,-4041.7,0.00016602,2]
[366098917,1750061452183,-490.0,0.00016602,2]
[366098918,1750061452193,-498.79222,0.00016602,2]
[366098919,1750061452204,-490.0,0.00016602,2]
[366098920,1750061452214,-490.0,0.00016602,2]
[366098921,1750061452224,-151.0,0.00016602,2]
[366098922,1750061452235,-1162.09,0.00016602,2]
[366098923,1750061452247,-994.91,0.00016602,2]
[366098924,1750061452257,-560.39,0.00016602,2]
[366098925,1750061452267,-498.79222,0.00016602,2]
[366098926,1750061452278,-6193.33,0.00016602,2]
[366098927,1750061452288,-490.0,0.00016602,2]
[366098928,1750061452299,-490.0,0.00016602,2]
[366098929,1750061452309,-1625.86,0.00016602,2]
[366098930,1750061452320,-490.0,0.00016602,2]
[366098931,1750061452330,-490.0,0.00016602,2]
[366098932,1750061452341,-1702.33,0.00016602,2]
[366098933,1750061452351,-490.0,0.00016602,2]
[366098934,1750061452362,-914.52,0.00016602,2]
[366098935,1750061452372,-831.18,0.00016602,2]
[366098936,1750061452382,-926.21,0.00016602,2]
[366098937,1750061452394,-3303.0,0.00016602,2]
[366098938,1750061452405,-740.05,0.00016602,2]
[366098939,1750061452415,-490.0,0.00016602,2]
[366098940,1750061452427,-800.07,0.00016602,2]
[366098941,1750061452437,-3130.75,0.00016602,2]
[366098942,1750061452447,-490.0,0.00016602,2]
[366098943,1750061452457,-151.0,0.00016602,2]
[366098944,1750061452469,-490.0,0.00016602,2]
[366098945,1750061452479,-395.062481,0.00016602,2]
[366098946,1750061452490,-2576.36,0.00016602,2]
[366098947,1750061452500,-595.86,0.00016602,2]
[366098948,1750061452510,-1408.5,0.00016602,2]
[366098949,1750061452521,-151.0,0.00016602,2]
[366098950,1750061452531,-490.0,0.00016602,2]
[366098951,1750061452541,-395.062481,0.00016602,2]
[366098952,1750061452552,-151.0,0.00016602,2]
[366098953,1750061452562,-1641.25,0.00016602,2]
[366098954,1750061452573,-1623.48,0.00016602,2]
[366098955,1750061452583,-938.66,0.00016602,2]
[366098956,1750061452593,-699.64,0.00016602,2]
[366098957,1750061452603,-595.18,0.00016602,2]
[366098958,1750061452613,-490.0,0.00016602,2]
[366098959,1750061452623,-3949.32,0.00016602,2]
[366098960,1750061452633,-908.03294238,0.00016606,2]
[366098961,1750061452643,-3635.83096873,0.00016612,2]
[366098962,1750061452653,-166.56650279,0.00016619,2]
[366098963,1750061452663,-500.0,0.0001663,2]
[366098964,1750061452673,-200.0,0.0001663,2]
[366098965,1750061452684,-177.87419577,0.00016643,2]
[366098966,1750061452694,-498.79222,0.00016652,2]
[366098967,1750061452704,-498.79222,0.00016652,2]
[366098968,1750061452714,-169.02903,0.00016652,2]
[366098969,1750061452723,-49137.514,0.00016652,2]
[366098970,1750061452734,-1500.0,0.00016652,2]
[366098971,1750061452744,-162.74938912,0.00016654,2]
[366098972,1750061452754,-151.0,0.0001666,2]
[366098973,1750061452764,-151.0,0.0001666,2]
[366098974,1750061452773,-151.0,0.0001666,2]
[366098975,1750061452784,-151.0,0.0001666,2]
[366098976,1750061452794,-151.0,0.0001666,2]
[366098977,1750061452804,-1495.915395,0.0001666,2]
[366098978,1750061452814,-1495.915395,0.0001666,2]
[366098979,1750061452823,-250.0,0.0001666,2]
[366098980,1750061452834,-186.105,0.0001666,2]
[366098981,1750061452843,-150.0,0.0001666,2]
[366098982,1750061452854,-150.354,0.0001666,2]
[366098983,1750061452868,-150.221,0.0001666,2]
[366098984,1750061452878,-286.896,0.0001666,2]
[366098985,1750061452888,-150.0,0.0001666,2]
[366098986,1750061452898,-150.241,0.0001666,2]
[366098987,1750061452908,-3333.0,0.0001666,2]
[366098988,1750061452918,-946.0,0.0001666,2]
[366098989,1750061452928,-3635.83096873,0.00016667,2]
[366098990,1750061452939,-270.82489365,0.00016667,2]
[366098991,1750061452949,-169.87767286,0.00016675,2]
[366098992,1750061452959,-933.62,0.000167,2]
[366098993,1750061452969,-200.0,0.000167,6]
[366098994,1750061452979,-270.82489361,0.00016706,2]
[366098995,1750061452989,-177.87419575,0.00016707,2]
[366098996,1750061452999,-3635.83096873,0.00016721,2]
[366098997,1750061453008,-151.69550239,0.00016735,2]
[366098998,1750061453018,-266.63936158,0.00016739,2]
[366098999,1750061453027,-150.0,0.00016739,2]
[366099000,1750061453037,-150.0,0.00016739,2]
[366099001,1750061453046,-500.0,0.00016742,2]
[366099002,1750061453056,-500.0,0.00016742,2]
[366099003,1750061453065,-500.0,0.00016742,2]
[366099004,1750061453075,-500.0,0.00016742,2]
[366099005,1750061453084,-291.379829,0.00016743,2]
[366099006,1750061453094,-151.0,0.00016743,2]
[366099007,1750061453103,-151.0,0.00016743,2]
[366099008,1750061453113,-151.0,0.00016743,2]
[366099009,1750061453122,-151.0,0.00016743,2]
[366099010,1750061453132,-187.115263,0.00016743,2]
[366099011,1750061453141,-187.115263,0.00016743,2]
[366099012,1750061453151,-151.0,0.00016743,2]
[366099013,1750061453161,-151.0,0.00016743,2]
[366099014,1750061453171,-151.0,0.00016743,2]
[366099015,1750061453181,-151.0,0.00016743,2]
[366099016,1750061453192,-151.0,0.00016743,2]
[366099017,1750061453202,-151.0,0.00016743,2]
[366099018,1750061453212,-252.755565,0.00016743,2]
[366099019,1750061453224,-252.755565,0.00016743,2]
[366099020,1750061453234,-151.0,0.00016743,2]
[366099021,1750061453244,-151.0,0.00016743,2]
[366099022,1750061453255,-151.0,0.00016743,2]
[366099023,1750061453416,-159.750425,0.00016743,2]
[366099024,1750061453426,-159.750425,0.00016743,2]
[366099025,1750061453436,-151.0,0.00016743,2]
[366099026,1750061453446,-201.462331,0.00016743,2]
[366099027,1750061453456,-201.462331,0.00016743,2]
[366099028,1750061453465,-7718.3066403,0.00016743,2]
[366099029,1750061453475,-434.623944,0.00016743,2]
[366099030,1750061453484,-434.623944,0.00016743,2]
[366099031,1750061453494,-459.470016,0.00016743,2]
[366099032,1750061453504,-459.470016,0.00016743,2]
[366099033,1750061453514,-29384.1456927,0.00016743,2]
[366099034,1750061453523,-6926.3224076,0.00016743,2]
[366099035,1750061453534,-151.0,0.00016743,2]
[366099036,1750061453544,-151.0,0.00016743,2]
[366099037,1750061453553,-763.729855,0.00016743,2]
[366099038,1750061453564,-151.0,0.00016743,2]
[366099039,1750061453574,-763.729855,0.00016743,2]
[366099040,1750061453584,-151.0,0.00016743,2]
[366099041,1750061453593,-151.0,0.00016743,2]
[366099042,1750061453602,-2059.1884348,0.00016743,2]
[366099043,1750061453613,-151.0,0.00016743,2]
[366099044,1750061453623,-151.0,0.00016743,2]
[366099045,1750061453633,-295.214219,0.00016743,2]
[366099046,1750061453642,-217.623931,0.00016743,2]
[366099047,1750061453652,-295.214219,0.00016743,2]
[366099048,1750061453661,-217.623931,0.00016743,2]
[366099049,1750061453671,-151.0,0.00016743,2]
[366099050,1750061453680,-123169.7773881,0.00016743,2]
[366099051,1750061453689,-309.65892,0.00016743,2]
[366099052,1750061453699,-151.0,0.00016743,2]
[366099053,1750061453709,-309.65892,0.00016743,2]
[366099054,1750061453719,-54055.4740816,0.00016743,2]
[366099055,1750061453728,-1495.915395,0.00016743,2]
[366099056,1750061453737,-1495.915395,0.00016743,2]
[366099057,1750061453748,-152.766728,0.00016743,2]
[366099058,1750061453757,-548.285852,0.00016743,2]
[366099059,1750061453767,-152.766728,0.00016743,2]
[366099060,1750061453777,-548.285852,0.00016743,2]
[366099061,1750061453786,-24606.8829218,0.00016743,2]
[366099062,1750061453795,-47614.7940829,0.00016743,2]
[366099063,1750061453805,-498.79222,0.00016743,2]
[366099064,1750061453815,-151.0,0.00016743,2]
[366099065,1750061453825,-498.79222,0.00016743,2]
[366099066,1750061453834,-151.0,0.00016743,2]
[366099067,1750061453843,-395.062481,0.00016743,2]
[366099068,1750061453855,-151.0,0.00016743,2]
[366099069,1750061453865,-395.062481,0.00016743,2]
[366099070,1750061453874,-270.82489361,0.00016745,2]
[366099071,1750061453883,-150.0,0.00016746,2]
[366099072,1750061453895,-151.0,0.00016752,2]
[366099073,1750061453905,-151.0,0.00016752,2]
[366099074,1750061453915,-262.913495,0.00016752,2]
[366099075,1750061453924,-262.913495,0.00016752,2]
[366099076,1750061453936,-340.451039,0.00016752,2]
[366099077,1750061453946,-340.451039,0.00016752,2]
[366099078,1750061453956,-151.0,0.00016752,2]
[366099079,1750061453965,-163.140116,0.00016752,2]
[366099080,1750061453975,-151.0,0.00016752,2]
[366099081,1750061453984,-338.229185,0.00016752,2]
[366099082,1750061453993,-338.229185,0.00016752,2]
[366099083,1750061454004,-151.0,0.00016752,2]
[366099084,1750061454014,-151.0,0.00016752,2]
[366099085,1750061454024,-159.858245,0.00016752,2]
[366099086,1750061454034,-159.858245,0.00016752,2]
[366099087,1750061454044,-2000.0,0.00016752,2]
[366099088,1750061454055,-200.0,0.00016752,2]
[366099089,1750061454065,-763.807748,0.00016752,2]
[366099090,1750061454075,-763.807748,0.00016752,2]
[366099091,1750061454085,-552.749158,0.00016752,2]
[366099092,1750061454095,-552.749158,0.00016752,2]
[366099093,1750061454105,-258.515498,0.00016752,2]
[366099094,1750061454114,-258.515498,0.00016752,2]
[366099095,1750061454123,-151.0,0.00016752,2]
[366099096,1750061454133,-151.0,0.00016752,2]
[366099097,1750061454142,-200.0,0.00016752,2]
[366099098,1750061454152,-940.963004,0.00016752,2]
[366099099,1750061454161,-940.963004,0.00016752,2]
[366099100,1750061454170,-200.062729,0.00016752,2]
[366099101,1750061454180,-200.062729,0.00016752,2]
[366099102,1750061454189,-200.0,0.00016752,2]
[366099103,1750061454199,-151.0,0.00016752,2]
[366099104,1750061454208,-200.0,0.00016752,2]
[366099105,1750061454218,-153.00790364,0.00016752,2]
[366099106,1750061454228,-195.071845,0.00016753,2]
[366099107,1750061454237,-195.071845,0.00016753,2]
[366099108,1750061454247,-188.945194,0.00016753,2]
[366099109,1750061454256,-151.0,0.00016753,2]
[366099110,1750061454266,-188.945194,0.00016753,2]
[366099111,1750061454275,-151.0,0.00016753,2]
[366099112,1750061454285,-151.0,0.00016753,2]
[366099113,1750061454294,-151.0,0.00016753,2]
[366099114,1750061454304,-151.0,0.00016753,2]
[366099115,1750061454314,-151.0,0.00016753,2]
[366099116,1750061454324,-151.0,0.00016753,2]
[366099117,1750061454334,-151.0,0.00016753,2]
[366099118,1750061454344,-151.0,0.00016753,2]
[366099119,1750061454353,-462.383436,0.00016753,2]
[366099120,1750061454363,-462.383436,0.00016753,2]
[366099121,1750061454373,-152.837842,0.00016753,2]
[366099122,1750061454383,-151.0,0.00016753,2]
[366099123,1750061454393,-151.0,0.00016753,2]
[366099124,1750061454403,-151.0,0.00016753,2]
[366099125,1750061454413,-151.0,0.00016753,2]
[366099126,1750061454422,-198.580242,0.00016753,2]
[366099127,1750061454432,-151.0,0.00016753,2]
[366099128,1750061454442,-151.0,0.00016753,2]
[366099129,1750061454452,-164.709364,0.00016753,2]
[366099130,1750061454462,-2632.439923,0.00016753,2]
[366099131,1750061454471,-2632.439923,0.00016753,2]
[366099132,1750061454482,-151.0,0.00016753,2]
[366099133,1750061454491,-2632.439923,0.00016753,2]
[366099134,1750061454500,-2632.439923,0.00016753,2]
[366099135,1750061454510,-151.0,0.00016753,2]
[366099136,1750061454520,-151.0,0.00016753,2]
[366099137,1750061454530,-1139.150874,0.00016753,2]
[366099138,1750061454539,-1139.150874,0.00016753,2]